Cogmind - Beta 13 @@@ ROGUE MODE // 2024.04.02 @ 09:10:05 Player: SunoPerson Result: Destroyed by Y-45 Defender with Heavy Assault Rifle Performance ------------- Evolutions (1) 500 Regions Visited (2) 400 Robots Destroyed (20) 100 Value Destroyed (625) 625 Prototype IDs (0) 0 Alien Tech Used (0) 0 Bonus (0) 0 TOTAL SCORE: 1625 Bonus ------- None Cogmind --------- Core Integrity 0/400 Matter 290/300 Energy 100/100 System Corruption 0% Temperature Cool (9) Movement Core (350) Ox6 Location -9/Materials Parts ------- > --- POWER (1) -------- (None) > --- PROPULSION (4) --- (None) > --- UTILITY (2) ------ Large Storage Unit > --- WEAPON (2) ------- Light Assault Rifle > --- INVENTORY (15) --- Targeting Computer Targeting Computer Targeting Computer ECM Suite Grenade Launcher Peak State ------------ > --- POWER ------------ Light Ion Engine > --- PROPULSION ------- Aluminum Leg Aluminum Leg Aluminum Leg > --- UTILITY ---------- Large Storage Unit Power Shielding > --- WEAPON ----------- Particle Gun Light Assault Rifle > --- INVENTORY -------- Targeting Computer Targeting Computer Targeting Computer ECM Suite Grenade Launcher [Rating: 9] Favorites ----------- Power Ion Engine Engine Ion Engine Propulsion Light Treads Treads Light Treads Leg Aluminum Leg Utility Large Storage Unit Storage Large Storage Unit Protection Power Shielding Weapon Medium Laser Energy Gun Medium Laser Ballistic Gun Light Assault Rifle Special Weapon Mining Laser Build | -11 -10 -9 ------- Run | Yrd Mat Mat Slots Evolved 2 | . . 2 Power . | . . . Propulsion 2 | . . 2 Utility . | . . . Weapon . | . . . Parts Attached 21 | 6 7 8 Power 3 | 1 1 1 Engine 3 | 1 1 1 Core . | . . . Reactor . | . . . Propulsion 5 | 2 1 2 Treads 2 | 2 . . Leg 3 | . 1 2 Wheel . | . . . Hover . | . . . Flight . | . . . Utility 3 | 1 2 . Device . | . . . Storage 2 | 1 1 . Processor . | . . . Hackware . | . . . Protection 1 | . 1 . Artifact . | . . . Weapon 10 | 2 3 5 Energy Gun 4 | 1 2 1 Energy Cannon . | . . . Ballistic Gun 4 | 1 1 2 Ballistic Cannon . | . . . Launcher . | . . . Special Weapon 2 | . . 2 Impact Weapon . | . . . Slashing Weapon . | . . . Piercing Weapon . | . . . Special Melee Weapon . | . . . Unidentified Prototypes . | . . . Parts Lost 13 | . 4 9 Power 2 | . 1 1 Propulsion 4 | . 1 3 Utility 1 | . . 1 Weapon 6 | . 2 4 Highest Loss Streak 9 | . 4 9 To Critical Strikes . | . . . Average Slot Usage (%) 85 | . 94 73 Engine 9 | . 12 4 Treads 15 | . 26 1 Leg 10 | . . 24 Storage 12 | . 14 11 Protection 10 | . 10 10 Energy Gun 19 | . 26 10 Ballistic Gun 5 | . 1 10 Naked Turns . | . . . Heaviest Build 30 | 13 30 28 Greatest Support 40 | 40 40 30 Greatest Overweight (x) 8 | 2 8 6 Average Overweight (x) . | . . . Largest Inventory Capacity 15 | 8 15 15 Average Capacity 13 | 6 13 15 Most Carried 8 | 1 8 6 Average Carried 4 | . 3 5 Final Capacity 15 | 8 15 15 Final Carried 6 | 1 6 5 Class Distribution -------------------- 80% | Mutant 19% | Scavenger-Mutant Dominant Class ---------------- Mutant | -10/Materials Mutant | -9/Materials Resources | -11 -10 -9 ----------- Run | Yrd Mat Mat Matter Collected 474 | 188 175 111 Remotely . | . . . Salvage Created 739 | . 316 423 Parts 35 | . 10 25 Haulers Intercepted . | . . . Recyclers Shooed . | . . . Parts Field Recycled . | . . . Retrieved Matter . | . . . Parts Self-Destructed . | . . . Prevented . | . . . Kills | -11 -10 -9 ------- Run | Yrd Mat Mat Combat Hostiles Destroyed 18 | . 8 10 Guns 17 | . 8 9 Cannons 1 | . . 1 Classes Destroyed 6 | . 1 5 Recycler 1 | . . 1 Watcher 1 | . . 1 Swarmer 2 | . . 2 Grunt 14 | . 8 6 Brawler 1 | . . 1 Sentry 1 | . . 1 Best Kill Streak 3 | . 2 3 Combat Bots Only 3 | . 2 3 Max Kills in Single Turn 2 | . 2 1 Gunslinging 1 | . 1 . Exploded . | . . . Melee . | . . . Uniques/NPCs Destroyed . | . . . Combat | -11 -10 -9 -------- Run | Yrd Mat Mat Hostile Shots Fired 171 | . 68 103 Missed 38 | . 14 24 Damage Taken 1638 | . 664 974 Core 500 | . 86 414 Absorbed by Shields . | . . . Redirected to Shielding 39 | . 26 13 Core Remaining (%) 82 | 100 65 . Volleys Fired 71 | . 34 37 Largest 2 | . 2 2 Hottest 140 | . 115 140 Shots Fired 128 | . 66 62 Gun 125 | . 66 59 Cannon . | . . . Launcher . | . . . Special 3 | . . 3 Kinetic 30 | . 2 28 Thermal 98 | . 64 34 Explosive . | . . . Electromagnetic . | . . . Robot Hit Streak 14 | . 14 9 Robot Miss Streak 4 | . 4 2 Penetration Max . | . . . Secondary Targets 2 | . 1 1 Max Gunslinging Chain 1 | . 1 1 Shots Hit Robots 84 | . 43 41 Core Hits 37 | . 18 19 Critical Kills . | . . . Critical Parts Destroyed . | . . . Critical Strikes 5 | . 5 . Burn 5 | . 5 . Melee Attacks . | . . . Impact . | . . . Slashing . | . . . Piercing . | . . . Sneak Attacks . | . . . Combat Hostiles . | . . . Follow-up Attacks . | . . . Damage Inflicted 1106 | . 560 546 Guns 1038 | . 545 493 Cannons . | . . . Explosions . | . . . Melee . | . . . Ramming 20 | . 15 5 Kinetic 173 | . 27 146 Thermal 913 | . 518 395 Explosive . | . . . Electromagnetic . | . . . Impact . | . . . Slashing . | . . . Piercing . | . . . Highest Corruption . | . . . Average Corruption . | . . . Corruption Purged . | . . . Corruption Blocked . | . . . Overload Shots . | . . . Overflow Damage . | . . . Projectiles . | . . . Explosions . | . . . Melee . | . . . Knockbacks 1 | . 1 . Impact 1 | . 1 . Kinetic . | . . . Secondary . | . . . Self-Inflicted Damage . | . . . Shots . | . . . Rammed 1 | . 1 . Targets Rammed 4 | . 1 3 Kicked 3 | . . 3 Crushed . | . . . Highest Temperature 613 | . 613 110 Average Temperature 131 | . 183 36 Received Heat Transfer 651 | . 354 297 Effects 17 | . 17 . Shutdowns 2 | . 2 . Energy Bleed 2 | . 2 . Interference 2 | . 2 . Matter Decay 2 | . 2 . Short Circuit 2 | . 2 . Damage (major) 6 | . 6 . Damage (core) 1 | . 1 . Siege Activations . | . . . Robots Corrupted . | . . . Combat Hostiles . | . . . Parts Fried . | . . . Impact Corruptions . | . . . Robots Melted . | . . . Combat Hostiles . | . . . Parts Melted 9 | . 8 1 Heat Transferred 2791 | . 1887 904 Parts Sabotaged . | . . . Parts Stolen . | . . . Parts Stripped . | . . . Power Chain Reactions . | . . . Alert | -11 -10 -9 ------- Run | Yrd Mat Mat Peak Influence 233 | . 135 233 Initial 56 | . . 56 Average 68 | . 36 117 Maximum Alert Level 1 | . . 1 Low Security (%) 94 | 100 100 85 Level 1 5 | . . 14 Level 2 . | . . . Level 3 . | . . . Level 4 . | . . . Level 5 . | . . . High Security . | . . . Max Security . | . . . Squads Dispatched 4 | . 3 1 Investigation 1 | . 1 . Extermination . | . . . Reinforcement 3 | . 2 1 Assault . | . . . Garrison . | . . . Intercept . | . . . Searches Triggered . | . . . Construction Impeded . | . . . Haulers Reinforced . | . . . Active Scanning Responses . | . . . Cargo Convoy Interrupts . | . . . Stealth | -11 -10 -9 --------- Run | Yrd Mat Mat Distress Signals 4 | . 3 1 Communications Jammed . | . . . Distress Signals . | . . . Times Spotted 35 | . 15 20 Peak Tracking Total 6 | . 4 6 Tactical Retreats 4 | . 1 3 Traps | -11 -10 -9 ------- Run | Yrd Mat Mat Traps Triggered 1 | . 1 . Indirectly . | . . . Trap Hack Attempts . | . . . Triggered . | . . . Disarmed . | . . . Reprogrammed . | . . . Reused . | . . . Traps Extracted . | . . . Installed . | . . . Triggered . | . . . Machines | -11 -10 -9 ---------- Run | Yrd Mat Mat Machines Disabled . | . . . Max in Single Turn . | . . . Machines Repaired . | . . . Machines Dismantled . | . . . Machines Sabotaged . | . . . Overloaded Fab Kills . | . . . Hacking | -11 -10 -9 --------- Run | Yrd Mat Mat Machines Accessed 4 | . 3 1 Terminals 4 | . 3 1 Fabricators . | . . . Repair Stations . | . . . Recycling Units . | . . . Scanalyzers . | . . . Garrison Access . | . . . Total Hacks 9 | . 8 1 Successful 6 | . 6 . Failed 3 | . 2 1 Catastrophic 1 | . . 1 Database Lockouts . | . . . Manual 3 | . 2 1 Terminals 9 | . 8 1 Fabricators . | . . . Repair Stations . | . . . Recycling Units . | . . . Scanalyzers . | . . . Garrison Access . | . . . Terminal Hacks 6 | . 6 . Emergency Access Points 1 | . 1 . Alert Level 2 | . 2 . Unreport Threat 1 | . 1 . Dispatch Records 1 | . 1 . Zone Layout 1 | . 1 . Fabricator Hacks . | . . . Repair Station Hacks . | . . . Recycling Unit Hacks . | . . . Scanalyzer . | . . . Garrison Access Hacks . | . . . Unauthorized Hacks . | . . . Terminals . | . . . Fabricators . | . . . Repair Stations . | . . . Recycling Units . | . . . Scanalyzers . | . . . Garrison Access . | . . . Data Cores Recovered . | . . . Used . | . . . Hacking Detections 2 | . 1 1 Full Trace Events . | . . . Feedback Events . | . . . Feedback Blocked . | . . . Robot Schematics Acquired . | . . . Robots Built . | . . . Authchips . | . . . Time . | . . . Total Robot Build Rating . | . . . Part Schematics Acquired . | . . . Parts Built . | . . . Authchips . | . . . Time . | . . . Total Part Build Rating . | . . . Parts Repaired . | . . . Time . | . . . Parts Recycled . | . . . Recycled Matter . | . . . Retrieved Matter . | . . . Retrieved Components . | . . . Parts Scanalyzed . | . . . Part Schematics Acquired . | . . . Parts Damaged . | . . . Bothacking | -11 -10 -9 ------------ Run | Yrd Mat Mat Used RIF Installer . | . . . Robots Hacked . | . . . Non-combat . | . . . Combat . | . . . Robot Hacks Applied . | . . . Relay Couplers Released . | . . . Fabnet Peak Effective % . | . . . Robots Rewired . | . . . Allies Hacked . | . . . Hacks Repelled . | . . . Allies | -11 -10 -9 -------- Run | Yrd Mat Mat Total Allies . | . . . Largest Group . | . . . Highest-Rated Group . | . . . Highest-Rated Ally . | . . . Total Orders . | . . . Ally Attacks . | . . . Total Damage . | . . . Kills . | . . . Allies Corrupted . | . . . Allies Melted . | . . . Intel | -11 -10 -9 ------- Run | Yrd Mat Mat Robot Analysis Total . | . . . Derelict Logs Recovered . | . . . Drone Launches . | . . . Drone Recoveries . | . . . Exploration | -11 -10 -9 ------------- Run | Yrd Mat Mat Turns Passed 1471 | 62 799 610 Spaces Moved 733 | 37 392 304 Core 18 | 11 4 3 Treads 405 | 26 379 . Legs 310 | . 9 301 Wheels . | . . . Hover . | . . . Flight . | . . . Fastest Speed 50 | 50 160 120 Average Speed 158 | 143 165 151 Slowest Speed 450 | 160 450 350 Overloaded Moves . | . . . Propulsion Burnouts . | . . . Robots Hopped . | . . . Cave-ins Triggered . | . . . Exploration Rate (%) 28 | 4 58 23 Regions Visited 2 Branch Regions . Pre-discovered Areas . | . . . Known Exits Taken . | . . . Unknown Exits Taken 2 | 1 1 . Scrap Searched . | . . . Spaces Dug . | . . . Terrain Destroyed . | . . . Melee . | . . . Projectile . | . . . AOE . | . . . Terrain Rammed . | . . . Walls Destroyed . | . . . Machines Disabled . | . . . Actions | -11 -10 -9 --------- Run | Yrd Mat Mat Total 907 | 43 476 388 Wait 66 | . 34 32 Move 731 | 36 391 304 Hop . | . . . Pick Up 10 | 1 7 2 Fast Attach 13 | 6 3 4 Attach 4 | . 2 2 Detach . | . . . Swap 4 | . 2 2 Drop 4 | . 2 2 Fire 71 | . 34 37 Melee . | . . . Ram . | . . . Kick 3 | . . 3 Crush 1 | . 1 . Escape Stasis . | . . . Rewire . | . . . Trap . | . . . Miscellaneous . | . . . Route ------- -11/Scrapyard -10/Materials (discovered 3 exits: *Mat x2 / [*Min]) -9/Materials (discovered 1 exit: [*Min]) History --------- Turn | Location | Event 17 | -11/Scrapyard | Discovered new exit (range 15) 63 | -11/Scrapyard | Entered Materials 71 | -10/Materials | Discovered new exit (range 15) 313 | -10/Materials | Build established: Mutant 434 | -10/Materials | Discovered new exit (range 3) 575 | -10/Materials | Discovered new exit (range 12) 841 | -10/Materials | Lost 4 parts (1p1n2w) 862 | -10/Materials | Entered another Materials area 862 | -9/Materials | Evolved 2 slots: Propulsion x2 1302 | -9/Materials | Discovered new exit (range 11) 1448 | -9/Materials | Core integrity fell below 50% 1461 | -9/Materials | Core integrity fell below 20% 1472 | -9/Materials | Destroyed by Y-45 Defender with Heavy Assault Rifle Last Messages --------------- R-06 Scavenger collects Ion Engine. Acquired 16 matter. Aluminum Leg destroyed. R-06 Scavenger collects Ion Engine. Acquired Sml. Laser. R-06 Scavenger collects Heat Sink. Lgt. Assault Rifle destroyed. S-10 Pest destroyed. Y-45 Defender destroyed. Aluminum Leg destroyed. Mining Laser destroyed. Critical hit (Burn: +37). S-10 Pest destroyed. Critical hit (Burn: +37). Power Shielding destroyed. Lgt. Ion Engine destroyed. S-10 Pest destroyed. Critical hit (Burn: +37). Sml. Laser destroyed. Acquired Lgt. Assault Rifle. Map ----- +----------------------------------------------------+ | | | | | | | | | | | | | | | | | | | | | | | | | | | ???????????????????????????????????????????? | | ???????????????????????????????????????????? | | ?????????????????######????????????????????? | | ?????????????????? ]?????????????????????? | | ?????????????????? ?????????????????????? | | ?????????????????? [ ?????????????????????? | | ?????????????????? Y ?????????????????????? | | ??????????????????# #?????????????????????? | | ??????#####???????# #?????????????????????? | | ?????##"""##??????#= #?????????????????????? | | ????##" ||"##?????#=%#?????????????????????? | | ????#"" ""#????##%*##????????????????????? | | ????# #????#[@ =##+########??????????? | | ????# < #????# #??????????? | | ????# #????# #??????????? | | ????# #????# %%##+##### #??????????? | | ????## ##????###%##????????????????????? | | ?###### ##???????# #?????????????????????? | | # """ # ######???# #?????????????????????? | | # """ + #???# #?????????????????????? | | # """ # #???# #?????????????????????? | | # # #???# #?????????????????????? | | # =# #???# #???#?????????????????? | | # # ##### ### #?????????????????? | | # # #?????????????????? | | ####### +?????????????????? | | ??????# #?????????????????? | | ??????# #######+########?????????????????? | | ??????# #??# T #????????????????????? | | ####### #??# #????????????????????? | | # + #??# """ #????????????????????? | | # " # #??# """ #???????##########???? | | # "" # #??# """ #???????# #???? | | # "" # #??# """ #???????# """"" #???? | | # """ # #??# """ #???????# """"" #???? | | # "" + #??# ######### """"" #???? | | # """ # #??# # ## """"" #???? | +----------------------------------------------------+ Best States ------------- Heat Dissipation 28 Energy Generation 10 Energy Capacity 250 Matter Stores 300 Matter Capacity 300 Sight Range 16 Terrain Scan Density 10 Power Shielding 33 Evasion (%) 55 Recoil Reduction 2 Item Schematics ----------------- None Robot Schematics ------------------ None Fabricated ------------ Nothing Alien Tech Used ----------------- None Achievements -------------- None Challenges ------------ None Game ------ Seed SkeletonConcussiveBoomstick Manual? 0 Play Time 00:15:35 Cumulative 6.7 hours Start 2024.04.02 @ 08:52:21 End 2024.04.02 @ 09:10:05 Sessions 1 Manual Loads 0 Difficulty Rogue Special Mode None Game No. 10 Rogue 10 Adventurer 0 Explorer 0 Win Type - Total 0 Types 0/0/0/0/0/0/0/0/0 Lore% 9 Gallery% 15 Achievement% 13 Wizard Run 0 Options --------- Layout 1 ASCII 0 Keyboard 0 Movement Numpad Keybinds 0 Fullscreen 1 Font 24/Smallcaps Map View 50x35 Zoom Use 0% Tactical HUD 0 Map Filters NONE Filters NONE Steam 1 RUN: 8e2b6f9c-b18c-4707-bf59-47937f9c5ca1